Cogmind - Beta 11 *** ADVENTURER MODE // 2022.04.02 @ 16:19:09 Player: Dhrov Result: Destroyed by G-34 Mercenary with Small Laser Performance ------------- Evolutions (1) 500 Regions Visited (3) 600 Robots Destroyed (31) 155 Value Destroyed (852) 852 Prototype IDs (3) 60 Alien Tech Used (0) 0 Bonus (0) 0 TOTAL SCORE: 2167 Bonus ------- None Cogmind --------- Core Integrity 0/400 Matter 280/300 Energy 100/100 System Corruption 0% Temperature Cool (6) Movement Core (350) Ox6 Location -9/Mines Parts ------- > --- POWER (1) -------- (None) > --- PROPULSION (4) --- (None) > --- UTILITY (2) ------ Large Storage Unit > --- WEAPON (2) ------- (None) > --- INVENTORY (15) --- Improved Ion Engine Visual Processing Unit Signal Interpreter Particle Gun Particle Gun Particle Gun Beam Cannon Particle Cannon High-powered Shotgun High-powered Shotgun High-powered Shotgun High-powered Shotgun Peak State ------------ > --- POWER ------------ Improved Ion Engine > --- PROPULSION ------- Airjet Airjet Airjet Airjet > --- UTILITY ---------- Large Storage Unit Weight Redist. System > --- WEAPON ----------- Particle Gun Improved Medium Laser > --- INVENTORY -------- Improved Ion Engine Visual Processing Unit Signal Interpreter Particle Gun Particle Gun Particle Gun Beam Cannon Particle Cannon High-powered Shotgun High-powered Shotgun High-powered Shotgun High-powered Shotgun [Rating: 24] Favorites ----------- Power Improved Ion Engine Engine Improved Ion Engine Propulsion Aluminum Leg Leg Aluminum Leg Hover Unit Airjet Utility Large Storage Unit Device Weight Redist. System Storage Large Storage Unit Protection Medium Armor Plating Weapon Particle Gun Energy Gun Particle Gun Energy Cannon Beam Cannon Ballistic Gun Light Assault Rifle Build | -11 -10 -9 -9 ------- Run | Scr Mat Mat Min Slots Evolved 2 | . . 2 . Power . | . . . . Propulsion 2 | . . 2 . Utility . | . . . . Weapon . | . . . . Parts Attached 26 | 6 6 13 1 Power 3 | 1 . 1 1 Engine 3 | 1 . 1 1 Core . | . . . . Reactor . | . . . . Propulsion 12 | 2 1 9 . Treads . | . . . . Leg 6 | 2 1 3 . Wheel . | . . . . Hover 6 | . . 6 . Flight . | . . . . Utility 5 | 1 2 2 . Device 1 | . . 1 . Storage 2 | 1 1 . . Processor . | . . . . Hackware . | . . . . Protection 2 | . 1 1 . Artifact . | . . . . Weapon 6 | 2 3 1 . Energy Gun 4 | 1 2 1 . Energy Cannon 1 | . 1 . . Ballistic Gun 1 | 1 . . . Ballistic Cannon . | . . . . Launcher . | . . . . Special Weapon . | . . . . Impact Weapon . | . . . . Slashing Weapon . | . . . . Piercing Weapon . | . . . . Special Melee Weapon . | . . . . Unidentified Prototypes 1 | . . 1 . Parts Lost 10 | . . 2 8 Power 1 | . . . 1 Propulsion 5 | . . 1 4 Utility 2 | . . 1 1 Weapon 2 | . . . 2 Highest Loss Streak 8 | . . 1 8 To Critical Strikes . | . . . . Average Slot Usage (%) 87 | . 90 86 83 Engine 11 | . 14 11 9 Leg 20 | . 28 21 . Hover 13 | . . 15 35 Device 1 | . . . 9 Storage 11 | . 14 11 11 Protection 4 | . 5 5 . Energy Gun 20 | . 19 22 17 Energy Cannon 1 | . 5 . . Naked Turns . | . . . . Heaviest Build 40 | 13 38 40 33 Greatest Support 40 | 20 20 40 38 Greatest Overweight (x) 4 | . 1 4 1 Average Overweight (x) . | . . . . Largest Inventory Capacity 15 | 8 15 15 15 Average Capacity 14 | 6 14 15 15 Most Carried 13 | 4 9 13 12 Average Carried 8 | 2 5 9 12 Final Capacity 15 | 8 15 15 15 Final Carried 12 | 4 9 12 12 Class Distribution -------------------- 100% | Mutant Dominant Class ---------------- Mutant | -10/Materials Mutant | -9/Materials Mutant | -9/Mines Resources | -11 -10 -9 -9 ----------- Run | Scr Mat Mat Min Matter Collected 455 | 249 71 125 10 Remotely . | . . . . Salvage Created 960 | . 240 603 117 Parts 58 | . 11 41 6 Haulers Intercepted . | . . . . Recyclers Shooed . | . . . . Parts Field Recycled . | . . . . Retrieved Matter . | . . . . Parts Self-Destructed . | . . . . Prevented . | . . . . Kills | -11 -10 -9 -9 ------- Run | Scr Mat Mat Min Combat Hostiles Destroyed 28 | . 8 16 4 Guns 22 | . 3 15 4 Cannons 5 | . 5 . . Classes Destroyed 5 | . 2 2 1 Worker 1 | . . . 1 Watcher 2 | . . 2 . Swarmer 8 | . 3 5 . Grunt 17 | . 5 8 4 Sentry 3 | . . 3 . Best Kill Streak 8 | . 3 8 2 Combat Bots Only 8 | . 3 8 2 Max Kills in Single Turn 2 | . 2 1 1 Gunslinging 1 | . 1 . . Exploded . | . . . . Melee . | . . . . Uniques/NPCs Destroyed . | . . . . Combat | -11 -10 -9 -9 -------- Run | Scr Mat Mat Min Damage Taken 1379 | . 143 479 757 Core 427 | . 20 63 344 Absorbed by Shields . | . . . . Regen/Repaired (Parts) 9 | . . 9 . Core Remaining (%) 96 | 100 92 . . Volleys Fired 72 | . 17 37 18 Largest 2 | . 2 2 2 Hottest 130 | . 130 121 121 Shots Fired 131 | . 34 62 35 Gun 117 | . 20 62 35 Cannon 14 | . 14 . . Launcher . | . . . . Special . | . . . . Kinetic . | . . . . Thermal 131 | . 34 62 35 Explosive . | . . . . Electromagnetic . | . . . . Robot Hit Streak 15 | . 13 15 7 Robot Miss Streak 3 | . 3 2 3 Penetration Max . | . . . . Secondary Targets 2 | . 1 1 . Max Gunslinging Chain 1 | . 1 1 . Shots Hit Robots 82 | . 21 45 16 Core Hits 41 | . 12 21 8 Critical Kills . | . . . . Critical Parts Destroyed . | . . . . Critical Strikes 6 | . 1 4 1 Burn 6 | . 1 4 1 Melee Attacks . | . . . . Impact . | . . . . Slashing . | . . . . Piercing . | . . . . Sneak Attacks . | . . . . Combat Hostiles . | . . . . Follow-up Attacks . | . . . . Damage Inflicted 1404 | . 343 772 289 Guns 1190 | . 150 751 289 Cannons 192 | . 192 . . Explosions . | . . . . Melee . | . . . . Ramming 22 | . 1 21 . Kinetic . | . . . . Thermal 1382 | . 342 751 289 Explosive . | . . . . Electromagnetic . | . . . . Impact . | . . . . Slashing . | . . . . Piercing . | . . . . Highest Corruption . | . . . . Average Corruption . | . . . . Corruption Purged . | . . . . Corruption Blocked . | . . . . Overload Shots . | . . . . Overflow Damage . | . . . . Projectiles . | . . . . Explosions . | . . . . Melee . | . . . . Knockbacks . | . . . . Impact . | . . . . Kinetic . | . . . . Secondary . | . . . . Self-Inflicted Damage 4 | . . 4 . Shots . | . . . . Rammed 1 | . . 1 . Targets Rammed 3 | . 1 2 . Kicked 2 | . 1 1 . Crushed . | . . . . Highest Temperature 436 | . 240 420 436 Average Temperature 142 | . 112 127 183 Received Heat Transfer 765 | . 36 168 561 Effects 10 | . 2 3 5 Shutdowns 3 | . . 2 1 Energy Bleed 2 | . . . 2 Interference 2 | . 2 . . Matter Decay 1 | . . . 1 Short Circuit 1 | . . 1 . Damage (minor) 1 | . . . 1 Siege Activations . | . . . . Robots Corrupted . | . . . . Combat Hostiles . | . . . . Parts Fried . | . . . . Impact Corruptions . | . . . . Robots Melted 1 | . . 1 . Combat Hostiles 1 | . . 1 . Parts Melted 11 | . 4 7 . Heat Transferred 3589 | . 888 1961 740 Parts Sabotaged . | . . . . Parts Stolen . | . . . . Parts Stripped . | . . . . Power Chain Reactions . | . . . . Missiles Intercepted . | . . . . Alert | -11 -10 -9 -9 ------- Run | Scr Mat Mat Min Peak Influence 326 | . 206 326 134 Initial 9 | . . 1 9 Average 84 | . 57 103 82 Maximum Alert Level 1 | . 1 1 . Low Security (%) 91 | 100 92 88 100 Level 1 8 | . 7 11 . Level 2 . | . . . . Level 3 . | . . . . Level 4 . | . . . . Level 5 . | . . . . High Security . | . . . . Max Security . | . . . . Squads Dispatched 3 | . 1 2 . Investigation 3 | . 1 2 . Extermination . | . . . . Reinforcement . | . . . . Assault . | . . . . Garrison . | . . . . Intercept . | . . . . Searches Triggered . | . . . . Construction Impeded . | . . . . Haulers Reinforced . | . . . . Active Scanning Responses . | . . . . Cargo Convoy Interrupts . | . . . . Stealth | -11 -10 -9 -9 --------- Run | Scr Mat Mat Min Distress Signals 3 | . 2 1 . Communications Jammed . | . . . . Distress Signals . | . . . . Times Spotted 44 | . 10 25 9 Peak Tracking Total 7 | . 3 7 3 Tactical Retreats 1 | . . . 1 Traps | -11 -10 -9 -9 ------- Run | Scr Mat Mat Min Traps Triggered 2 | . 1 1 . Indirectly . | . . . . Trap Hack Attempts . | . . . . Triggered . | . . . . Disarmed . | . . . . Reprogrammed . | . . . . Reused . | . . . . Traps Extracted . | . . . . Installed . | . . . . Triggered . | . . . . Machines | -11 -10 -9 -9 ---------- Run | Scr Mat Mat Min Machines Disabled . | . . . . Max in Single Turn . | . . . . Machines Sabotaged . | . . . . Garrisons Compromised . | . . . . Overloaded Fab Kills . | . . . . Hacking | -11 -10 -9 -9 --------- Run | Scr Mat Mat Min Machines Accessed 7 | . 3 4 . Terminals 4 | . 3 1 . Fabricators . | . . . . Repair Stations 1 | . . 1 . Recycling Units . | . . . . Scanalyzers 2 | . . 2 . Garrison Access . | . . . . Total Hacks 19 | . 10 9 . Successful 17 | . 9 8 . Failed 2 | . 1 1 . Catastrophic . | . . . . Database Lockouts . | . . . . Manual . | . . . . Terminals 12 | . 10 2 . Fabricators . | . . . . Repair Stations 2 | . . 2 . Recycling Units . | . . . . Scanalyzers 5 | . . 5 . Garrison Access . | . . . . Terminal Hacks 11 | . 9 2 . Record 7 | . 5 2 . Prototype ID Bank 1 | . 1 . . Alert Level 1 | . 1 . . Locate Traps 1 | . 1 . . Zone Layout 1 | . 1 . . Fabricator Hacks . | . . . . Repair Station Hacks 2 | . . 2 . Scan Component 1 | . . 1 . Repair 1 | . . 1 . Recycling Unit Hacks . | . . . . Scanalyzer 4 | . . 4 . Insert Component 3 | . . 3 . Analyze 1 | . . 1 . Garrison Access Hacks . | . . . . Unauthorized Hacks . | . . . . Terminals . | . . . . Fabricators . | . . . . Repair Stations . | . . . . Recycling Units . | . . . . Scanalyzers . | . . . . Garrison Access . | . . . . Data Cores Recovered . | . . . . Used . | . . . . Hacking Detections 6 | . 3 3 . Full Trace Events 1 | . . 1 . Feedback Events . | . . . . Feedback Blocked . | . . . . Robot Schematics Acquired . | . . . . Robots Built . | . . . . Authchips . | . . . . Time . | . . . . Total Robot Build Rating . | . . . . Part Schematics Acquired 1 | . . 1 . Parts Built . | . . . . Authchips . | . . . . Time . | . . . . Total Part Build Rating . | . . . . Parts Repaired 1 | . . 1 . Time 53 | . . 53 . Parts Recycled . | . . . . Recycled Matter . | . . . . Retrieved Matter . | . . . . Retrieved Components . | . . . . Parts Scanalyzed 1 | . . 1 . Part Schematics Acquired 1 | . . 1 . Parts Damaged . | . . . . Bothacking | -11 -10 -9 -9 ------------ Run | Scr Mat Mat Min Used RIF Installer . | . . . . Robots Hacked . | . . . . Non-combat . | . . . . Combat . | . . . . Robot Hacks Applied . | . . . . Relay Couplers Released . | . . . . Fabnet Peak Effective % . | . . . . Robots Rewired . | . . . . Allies Hacked . | . . . . Hacks Repelled . | . . . . Allies | -11 -10 -9 -9 -------- Run | Scr Mat Mat Min Total Allies . | . . . . Largest Group . | . . . . Highest-Rated Group . | . . . . Highest-Rated Ally . | . . . . Total Orders . | . . . . Ally Attacks . | . . . . Total Damage . | . . . . Kills . | . . . . Allies Corrupted . | . . . . Allies Melted . | . . . . Intel | -11 -10 -9 -9 ------- Run | Scr Mat Mat Min Robot Analysis Total . | . . . . Derelict Logs Recovered 1 | . . . 1 Drone Launches . | . . . . Drone Recoveries . | . . . . Exploration | -11 -10 -9 -9 ------------- Run | Scr Mat Mat Min Turns Passed 1830 | 61 504 1042 223 Spaces Moved 921 | 45 238 551 87 Core 8 | 8 . . . Treads . | . . . . Legs 572 | 37 238 297 . Wheels . | . . . . Hover 341 | . . 254 87 Flight . | . . . . Fastest Speed 48 | 50 120 48 48 Average Speed 141 | 107 176 143 52 Slowest Speed 300 | 120 190 300 108 Overloaded Moves . | . . . . Propulsion Burnouts . | . . . . Robots Hopped . | . . . . Cave-ins Triggered . | . . . . Exploration Rate (%) 30 | 4 46 49 22 Regions Visited 3 Branch Regions 1 Pre-discovered Areas 1 | . . . 1 Known Exits Taken . | . . . . Unknown Exits Taken 3 | 1 1 1 . Scrap Searched . | . . . . Spaces Dug . | . . . . Terrain Destroyed . | . . . . Melee . | . . . . Projectile . | . . . . AOE . | . . . . Terrain Rammed . | . . . . Walls Destroyed . | . . . . Machines Disabled . | . . . . Actions | -11 -10 -9 -9 --------- Run | Scr Mat Mat Min Total 1308 | 54 286 739 229 Wait 256 | . 13 120 123 Move 918 | 44 237 550 87 Hop . | . . . . Pick Up 19 | 4 7 8 . Fast Attach 17 | 6 3 8 . Attach 1 | . . 1 . Detach . | . . . . Swap 8 | . 3 4 1 Drop 14 | . 5 9 . Fire 72 | . 17 37 18 Melee . | . . . . Ram 1 | . . 1 . Kick 2 | . 1 1 . Crush . | . . . . Escape Stasis . | . . . . Rewire . | . . . . Trap . | . . . . Miscellaneous . | . . . . Route ------- -11/Scrapyard -10/Materials (discovered 2 exits: *Mat / [*Min]) -9/Materials (discovered 3 exits: [*Mat] / [*Min x2]) -9/Mines History --------- Turn | Location | Event 3 | -11/Scrapyard | Discovered new exit (range 15) 62 | -11/Scrapyard | Entered Materials 212 | -10/Materials | Discovered new exit (range 11) 318 | -10/Materials | Build established: Mutant 438 | -10/Materials | Discovered new exit (range 13) 566 | -10/Materials | Entered another Materials area 566 | -9/Materials | Evolved 2 slots: Propulsion x2 845 | -9/Materials | Discovered new exit (range 16) 900 | -9/Materials | Destroyed 8 combat bots 1329 | -9/Materials | Discovered new exit (range 4) 1510 | -9/Materials | Repaired Broken Airjet 1601 | -9/Materials | Discovered new exit (range 11) 1608 | -9/Materials | Entered Mines 1665 | -9/Mines | Excavation squad dispatched 1665 | -9/Mines | A large section of the Mines collapsed 1806 | -9/Mines | Core integrity fell below 50% 1821 | -9/Mines | Core integrity fell below 20% 1831 | -9/Mines | Lost 8 parts (1p4n1u2w) 1831 | -9/Mines | Destroyed by G-34 Mercenary with Small Laser Last Messages --------------- Airjet destroyed. Weight Redist. System destroyed. Airjet destroyed. U-05 Engineer lays Concrete. T-07 Excavator is excavating. Overheating: Energy bleed (-29). U-05 Engineer lays Concrete. T-07 Excavator is excavating. U-05 Engineer lays Concrete. Imp. Ion Engine destroyed. T-07 Excavator is excavating. U-05 Engineer lays Concrete. T-07 Excavator is excavating. U-05 Engineer lays Concrete. T-07 Excavator is excavating. U-05 Engineer lays Concrete. T-07 Excavator is excavating. U-05 Engineer lays Concrete. T-07 Excavator is excavating. U-05 Engineer lays Concrete. Map ----- +----------------------------------------------------+ | | | ?????????????????????????????????????????????????? | | ?????????????????????????????????????????????????? | | ?????????????????????????????#####???????????????? | | ????????????????????????????## ##??????????????? | | ????????????????????????????# #??????????????? | | ????????????????????????????# #??????????????? | | ????????????????????????????# #??????????????? | | ??????????????????##????????# ##??????????????? | | ??????????????????# ???????# #???????????????? | | ??????????????????# ?????## #???????????????? | | ??????????????????# ????# ##???????????????? | | ???????????????????# #???# ##???????????????? | | ????????????????????# #?## ##??????????????? | | ?????????????????????# ## #??????????????? | | ?????????????????????# #??????????????? | | ?????????????????????# ##### ##??????????????? | | ????????????????????## ; ####???????????????? | | ????????????????????# t [##????????????????? | | ?????????????? ## ##?????????????????? | | ??????????????? #?# ; #??????????????????? | | ???????????????##### ##?## ##?????????????????? | | ???????????????????#???## g;% #?????????????????? | | ???????????????????????# g ##????????????????? | | ???????????????????????# g ##???????????????? | | ???????????????????????##@## ##??????????????? | | ????????????????????????##### #??????????????? | | ????????????????????????????# ####???????????? | | ????????????????????????????# #???????????? | | ????????????????????????????# #??#????????? | | ????????????????????####????## ## #? ?????????? | | ???????????????????## ## ##### ##? ## ?????????? | | ??????????????????## # #?? ??????????? | | ?????????????????## ####### #?? ?????????? | | ???????????????### #??????# #??# ### ???????? | | ??????????????## #??????# #### #???????????? | | ????????# ##### ! ##?????# #???????????? | | ????????# ###???# #### $ #?????? | | ????????######## ##### #??# ## ?? | | ???????????????####% #?? #?? ? | | ??????????????????## ! #######?? * ??? ### | | ???????????????????## ##???????? % ????? #????? | | ????????????????????######????????? ??????#????? | | ??????????????????????????????????# ???????????? | | ??????????????????????????????????# ???????????? | | ??????????????????????????????????## ???????????? | | ????????????????????????????????????## ??????????? | | ??????????????????????????????????????#??????????? | | ?????????????????????????????????????????????????? | | ?????????????????????????????????????????????????? | +----------------------------------------------------+ Best States ------------- Heat Dissipation 28 Energy Generation 12 Energy Capacity 265 Matter Stores 300 Matter Capacity 300 Sight Range 16 Terrain Scan Density 10 Additional Mass Support 6 Armor Coverage 225 Resistance: KI 20 Resistance: TH 20 Resistance: EX 20 Resistance: EM 20 Resistance: I 20 Resistance: S 20 Resistance: P 20 Evasion (%) 55 Offensive Hacking 10 Item Schematics ----------------- Particle Gun | -9/Materials | Scanalyzed Robot Schematics ------------------ None Fabricated ------------ Nothing Alien Tech Used ----------------- None Achievements -------------- None Challenges ------------ None Game ------ Seed ReflectiveCatalystTorch Manual? 0 Play Time 00:23:23 Cumulative 19.5 hours Start 2022.04.02 @ 15:58:48 End 2022.04.02 @ 16:19:09 Sessions 1 Manual Loads 0 Difficulty Adventurer Special Mode None Game No. 48 Rogue 43 Adventurer 5 Explorer 0 Win Type - Total 0 Types 0/0/0/0/0/0/0/0/0 Lore% 14 Gallery% 18 Achievement% 14 Wizard Run 0 Options --------- ASCII 0 Keyboard 0 Movement Mouse Keybinds 0 Fullscreen 1 Font 18/SmallcapsGlow Map View 76x50 Tactical HUD 0 Map Filters NONE Filters NONE Steam 1 RUN: 264335c1-b1be-4603-a5bb-6a763b166e81